fUST/lending_fUST_20241225
["ID","MTS","AMOUNT","RATE_DAILY","PERIOD"]
[346555099,1735081847212,-500.0,0.00013698,2]
[346555100,1735081847221,-151.0,0.00013698,2]
[346555101,1735081847231,-151.0,0.00013698,2]
[346555102,1735081847240,-151.0,0.00013698,2]
[346555103,1735081847249,-151.0,0.00013698,2]
[346555104,1735081847258,-1188.81,0.00013698,2]
[346555105,1735081847268,-151.0,0.00013698,2]
[346555106,1735081847277,-151.0,0.00013698,2]
[346555107,1735081847286,-151.0,0.00013698,2]
[346555108,1735081847296,-151.0,0.00013698,2]
[346555109,1735081847305,-279.558484,0.00013698,2]
[346555110,1735081847314,-541.01,0.00013698,2]
[346555111,1735081847324,-500.0,0.00013698,2]
[346555112,1735081847334,-500.0,0.00013698,2]
[346555113,1735081847343,-500.0,0.00013698,2]
[346555114,1735081847352,-1086.4,0.00013698,2]
[346555115,1735081847361,-500.0,0.00013698,2]
[346555116,1735081847371,-500.0,0.00013698,2]
[346555117,1735081847380,-1393.8,0.00013698,2]
[346555118,1735081847389,-500.0,0.00013698,2]
[346555119,1735081847399,-500.0,0.00013698,2]
[346555120,1735081847408,-1224.94,0.00013698,2]
[346555121,1735081847418,-151.0,0.00013698,2]
[346555122,1735081847427,-151.0,0.00013698,2]
[346555123,1735081847437,-500.0,0.00013698,2]
[346555124,1735081847446,-1028.98,0.00013698,2]
[346555125,1735081847456,-500.0,0.00013698,2]
[346555126,1735081847465,-500.0,0.00013698,2]
[346555127,1735081847475,-2030.17,0.00013698,2]
[346555128,1735081847485,-500.0,0.00013698,2]
[346555129,1735081847494,-500.0,0.00013698,2]
[346555130,1735081847504,-711.85,0.00013698,2]
[346555131,1735081847513,-502.87951586,0.00013698,2]
[346555132,1735081847523,-211.64130333,0.00013698,2]
[346555133,1735081847532,-500.0,0.00013698,2]
[346555134,1735081847541,-500.0,0.00013698,2]
[346555135,1735081847550,-1342.66,0.00013698,2]
[346555136,1735081847560,-1150.97,0.00013698,2]
[346555137,1735081847569,-500.0,0.00013698,2]
[346555138,1735081847579,-500.0,0.00013698,2]
[346555139,1735081847589,-165.638438,0.00013698,2]
[346555140,1735081847599,-500.0,0.00013698,2]
[346555141,1735081847609,-165.638438,0.00013698,2]
[346555142,1735081847618,-500.0,0.00013698,2]
[346555143,1735081847628,-165.638438,0.00013698,2]
[346555144,1735081847637,-500.0,0.00013698,2]
[346555145,1735081847647,-165.638438,0.00013698,2]
[346555146,1735081847657,-500.0,0.00013698,2]
[346555147,1735081847666,-1800.9,0.00013698,2]
[346555148,1735081847675,-500.0,0.00013698,2]
[346555149,1735081847685,-500.0,0.00013698,2]
[346555150,1735081847694,-165.638438,0.00013698,2]
[346555151,1735081847704,-500.0,0.00013698,2]
[346555152,1735081847713,-165.638438,0.00013698,2]
[346555153,1735081847724,-500.0,0.00013698,2]
[346555154,1735081847736,-165.638438,0.00013698,2]
[346555155,1735081847745,-500.0,0.00013698,2]
[346555156,1735081847754,-500.0,0.00013698,2]
[346555157,1735081847764,-165.638438,0.00013698,2]
[346555158,1735081847774,-500.0,0.00013698,2]
[346555159,1735081847783,-500.0,0.00013698,2]
[346555160,1735081847792,-165.638438,0.00013698,2]
[346555161,1735081847803,-500.0,0.00013698,2]
[346555162,1735081847812,-500.0,0.00013698,2]
[346555163,1735081847822,-165.638438,0.00013698,2]
[346555164,1735081847831,-500.0,0.00013698,2]
[346555165,1735081847842,-165.638438,0.00013698,2]
[346555166,1735081847852,-457.50215855,0.00013698,2]
[346555167,1735081847861,-165.638438,0.00013698,2]
[346555168,1735081847870,-165.638438,0.00013698,2]
[346555169,1735081847879,-165.638438,0.00013698,2]
[346555170,1735081847889,-165.638438,0.00013698,2]
[346555171,1735081847899,-165.638438,0.00013698,2]
[346555172,1735081847908,-165.638438,0.00013698,2]
[346555173,1735081847917,-165.638438,0.00013698,2]
[346555174,1735081847926,-165.638438,0.00013698,2]
[346555175,1735081847936,-1494.53,0.00013698,2]
[346555176,1735081847945,-165.638428,0.00013698,2]
[346555177,1735081847954,-1684.76,0.00013698,2]
[346555178,1735081847963,-500.0,0.00013698,2]
[346555179,1735081847972,-2278.84,0.00013698,2]
[346555180,1735081847981,-1268.08,0.00013698,2]
[346555181,1735081847990,-1187.72,0.00013698,2]
[346555182,1735081848001,-1586.49,0.00013698,2]
[346555183,1735081848010,-964.32,0.00013698,2]
[346555184,1735081848019,-500.0,0.00013698,2]
[346555185,1735081848028,-500.0,0.00013698,2]
[346555186,1735081848037,-533.4,0.00013698,2]
[346555187,1735081848046,-504.63342108,0.00013698,2]
[346555188,1735081848055,-151.0,0.00013698,2]
[346555189,1735081848065,-1228.17,0.00013698,2]
[346555190,1735081848074,-151.0,0.00013698,2]
[346555191,1735081848083,-1381.22,0.00013698,2]
[346555192,1735081848093,-500.0,0.00013698,2]
[346555193,1735081848103,-500.0,0.00013698,2]
[346555194,1735081848112,-721.14,0.00013698,2]
[346555195,1735081848122,-500.0,0.00013698,2]
[346555196,1735081848132,-22427.13,0.00013698,2]
[346555197,1735081848141,-151.487862,0.00013698,2]
[346555198,1735081848151,-1309.28,0.00013698,2]
[346555199,1735081848160,-500.0,0.00013698,2]
[346555200,1735081848170,-500.0,0.00013698,2]
[346555201,1735081848180,-971.62,0.00013698,2]
[346555202,1735081848189,-943.32,0.00013698,2]
[346555203,1735081848198,-500.0,0.00013698,2]
[346555204,1735081848208,-500.0,0.00013698,2]
[346555205,1735081848218,-500.0,0.00013698,2]
[346555206,1735081848227,-500.0,0.00013698,2]
[346555207,1735081848237,-500.0,0.00013698,2]
[346555208,1735081848246,-500.0,0.00013698,2]
[346555209,1735081848256,-500.0,0.00013698,2]
[346555210,1735081848265,-500.0,0.00013698,2]
[346555211,1735081848275,-503.10281426,0.00013698,2]
[346555212,1735081848284,-500.0,0.00013698,2]
[346555213,1735081848293,-500.0,0.00013698,2]
[346555214,1735081848303,-586.69,0.00013698,2]
[346555215,1735081848312,-500.0,0.00013698,2]
[346555216,1735081848323,-500.0,0.00013698,2]
[346555217,1735081848334,-283.67510786,0.00013698,2]
[346555218,1735081848343,-839.214212,0.00013698,2]
[346555219,1735081848352,-839.214212,0.00013698,2]
[346555220,1735081848363,-530.97,0.00013698,2]
[346555221,1735081848373,-839.214212,0.00013698,2]
[346555222,1735081848382,-839.214212,0.00013698,2]
[346555223,1735081848392,-8284.24,0.00013698,2]
[346555224,1735081848402,-839.214212,0.00013698,2]
[346555225,1735081848412,-829.56,0.00013698,4]
[346555226,1735081848421,-500.0,0.00013698,2]
[346555227,1735081848431,-839.214212,0.00013698,2]
[346555228,1735081848441,-500.0,0.00013698,2]
[346555229,1735081848450,-839.214212,0.00013698,2]
[346555230,1735081848460,-500.0,0.00013698,2]
[346555231,1735081848470,-500.0,0.00013698,2]
[346555232,1735081848480,-500.0,0.00013698,2]
[346555233,1735081848491,-839.214212,0.00013698,2]
[346555234,1735081848500,-500.0,0.00013698,2]
[346555235,1735081848510,-839.214212,0.00013698,2]
[346555236,1735081848520,-500.0,0.00013698,2]
[346555237,1735081848529,-839.214212,0.00013698,2]
[346555238,1735081848539,-500.0,0.00013698,2]
[346555239,1735081848549,-500.0,0.00013698,2]
[346555240,1735081848559,-839.214212,0.00013698,2]
[346555241,1735081848569,-433.60613764,0.00013698,2]
[346555242,1735081848579,-839.214212,0.00013698,2]
[346555243,1735081848590,-839.214212,0.00013698,2]
[346555244,1735081848600,-839.214212,0.00013698,2]
[346555245,1735081848613,-839.214212,0.00013698,2]
[346555246,1735081848623,-500.0,0.00013698,2]
[346555247,1735081848632,-839.214212,0.00013698,2]
[346555248,1735081848642,-839.214212,0.00013698,2]
[346555249,1735081848651,-839.214212,0.00013698,2]
[346555250,1735081848661,-839.214212,0.00013698,2]
[346555251,1735081848671,-839.214202,0.00013698,2]
[346555252,1735081848681,-4874.47,0.00013698,2]
[346555253,1735081848691,-500.0,0.00013698,2]
[346555254,1735081848701,-648.25,0.00013698,2]
[346555255,1735081848711,-500.0,0.00013698,2]
[346555256,1735081848721,-500.0,0.00013698,2]
[346555257,1735081848736,-500.0,0.00013698,2]
[346555258,1735081848745,-500.0,0.00013698,2]
[346555259,1735081848755,-1540.25,0.00013698,2]
[346555260,1735081848764,-151.0,0.00013698,2]
[346555261,1735081848774,-151.0,0.00013698,2]
[346555262,1735081848784,-151.0,0.00013698,2]
[346555263,1735081848794,-151.0,0.00013698,2]
[346555264,1735081848805,-151.0,0.00013698,2]
[346555265,1735081848814,-6899.44780048,0.00013698,2]
[346555266,1735081848824,-151.0,0.00013698,2]
[346555267,1735081848834,-500.0,0.00013698,2]
[346555268,1735081848844,-151.0,0.00013698,2]
[346555269,1735081848853,-209.653684,0.00013698,2]
[346555270,1735081848864,-2255.56,0.00013698,2]
[346555271,1735081848874,-1519.18,0.00013698,2]
[346555272,1735081848884,-2115.08,0.00013698,2]
[346555273,1735081848893,-500.0,0.00013698,2]
[346555274,1735081848903,-1196.43,0.00013698,2]
[346555275,1735081848912,-730.54,0.00013698,2]
[346555276,1735081848922,-500.0,0.00013698,2]
[346555277,1735081848932,-497.93768569,0.00013698,2]
[346555278,1735081848942,-500.0,0.00013698,2]
[346555279,1735081848952,-500.0,0.00013698,2]
[346555280,1735081848961,-500.0,0.00013698,2]
[346555281,1735081848971,-512.3,0.00013698,2]
[346555282,1735081848980,-5916.35,0.00013698,2]
[346555283,1735081848990,-500.0,0.00013698,2]
[346555284,1735081848999,-19904.07604138,0.00013698,2]
[346555285,1735082134989,337.33428621,0.0001858,30]
[346555286,1735082176458,-3000.0,0.0001403,30]
[346555287,1735082176482,-3000.0,0.0001404,30]
[346555288,1735082176507,-3000.0,0.0001405,30]
[346555289,1735082176530,-3000.0,0.0001406,30]
[346555290,1735082176554,-3000.0,0.0001407,30]
[346555291,1735082176576,-3000.0,0.0001408,30]
[346555292,1735082176602,-3000.0,0.0001409,30]
[346555293,1735082176626,-3000.0,0.000141,30]
[346555294,1735082176649,-3000.0,0.0001411,30]
[346555295,1735082176672,-3000.0,0.0001412,30]
[346555296,1735082176695,-3000.0,0.0001413,30]
[346555297,1735082176718,-3446.424348,0.0001414,30]
[346555298,1735082309430,2556.96331672,0.0001858,30]
[346555299,1735082353559,491.16403923,0.00010047,2]
[346555300,1735082561499,5000.25,0.00023,120]
[346555301,1735082585506,3750.19,0.00023,120]
[346555302,1735082604172,2812.64,0.00023,120]
[346555303,1735082621035,2109.48,0.00023,120]
[346555304,1735082638978,1582.11,0.00023,120]
[346555305,1735082662772,1186.59,0.000207,90]
[346555306,1735082679081,889.94,0.000207,90]
[346555307,1735082701460,667.45,0.000207,90]
[346555308,1735082732083,2002.36,0.00023,120]
[346555309,1735082828144,-8.83596077,0.00010047,2]
[346555310,1735082828168,-340.83470341,0.00010509,2]
[346555311,1735082848095,-159.16529659,0.00010404,2]
[346555312,1735082848118,-159.16529659,0.00010509,2]
[346555313,1735082848139,-500.0,0.00011062,2]
[346555314,1735082848159,-500.0,0.00011645,2]
[346555315,1735082848179,-500.0,0.00012257,2]
[346555316,1735082848203,-250.0,0.00012653,2]
[346555317,1735082848224,-300.0,0.00012663,2]
[346555318,1735082848247,-300.0,0.00012663,2]
[346555319,1735082848271,-696.75449221,0.00012664,2]
[346555331,1735082973154,-5727.84423386,0.00012538,2]
[346555332,1735082973175,-191.3158532,0.00012563,2]
[346555333,1735082990075,204.92851294,0.00012536,2]
[346555341,1735083032568,-395.07148706,0.00012536,2]
[346555342,1735083032578,-8327.63498459,0.00012664,2]
[346555343,1735083032588,-191.31585319,0.00012778,2]
[346555344,1735083032597,-300.0,0.00012877,2]
[346555345,1735083032606,-300.0,0.00012877,2]
[346555346,1735083032615,-153.0,0.00012878,2]
[346555347,1735083032625,-306.6158763,0.00012878,2]
[346555348,1735083032634,-153.3554759,0.00012878,2]
[346555349,1735083032644,-430.8608412,0.00012878,2]
[346555350,1735083032653,-500.0,0.00012903,2]
[346555351,1735083032662,-403.503,0.0001302,2]
[346555352,1735083032672,-352.2473484,0.000135,2]
[346555353,1735083032681,-262.9773439,0.000135,2]
[346555354,1735083032690,-222.0803535,0.00013561,2]
[346555355,1735083032699,-500.0,0.00013582,2]
[346555356,1735083032708,-5350.14682959,0.00013586,2]
[346555357,1735083032717,-5920.14981528,0.00013598,2]
[346555358,1735083032726,-440.01274673,0.00013598,2]
[346555359,1735083032735,-666.0,0.00013598,2]
[346555360,1735083032744,-401.56583703,0.00013673,2]
[346555361,1735083032853,-98.43416297,0.00013673,2]
[346555362,1735083032863,-613.68146426,0.00013673,2]
[346555363,1735083032872,-500.0,0.00013673,2]
[346555364,1735083032881,-500.0,0.00013673,2]
[346555365,1735083032890,-500.0,0.00013673,2]
[346555366,1735083032900,-500.0,0.00013673,2]
[346555367,1735083032909,-500.0,0.00013673,2]
[346555368,1735083032920,-152.0,0.00013677,2]
[346555369,1735083032929,-500.0,0.0001369,2]
[346555370,1735083032938,-503.73435958,0.00013697,2]
[346555371,1735083032947,-500.0,0.00013697,2]
[346555372,1735083032956,-500.0,0.00013697,2]
[346555373,1735083032965,-500.0,0.00013697,2]
[346555374,1735083032975,-500.0,0.00013697,2]
[346555375,1735083032983,-500.0,0.00013697,2]
[346555377,1735083032994,-575.0,0.00013697,2]
[346555378,1735083033003,-500.0,0.00013697,2]
[346555380,1735083033012,-500.0,0.00013697,2]
[346555381,1735083033021,-385.0,0.00013697,2]
[346555384,1735083033031,-390.93583653,0.00013697,2]
[346555385,1735083033041,-500.0,0.00013697,2]
[346555386,1735083033051,-500.0,0.00013697,2]
[346555387,1735083033061,-500.0,0.00013697,2]
[346555388,1735083033071,-376.13405806,0.00013697,2]
[346555389,1735083033081,-500.0,0.00013697,2]
[346555390,1735083033090,-500.0,0.00013697,2]
[346555392,1735083033099,-500.0,0.00013697,2]
[346555394,1735083033109,-500.0,0.00013697,2]
[346555396,1735083033118,-500.0,0.00013697,2]
[346555398,1735083033131,-500.0,0.00013697,2]
[346555400,1735083033141,-500.0,0.00013697,2]
[346555402,1735083033150,-500.0,0.00013697,2]
[346555404,1735083033160,-500.0,0.00013697,2]
[346555406,1735083033171,-500.0,0.00013697,2]
[346555408,1735083033181,-500.0,0.00013697,2]
[346555410,1735083033190,-200.0,0.00013697,2]
[346555412,1735083033199,-378.82652148,0.00013697,2]
[346555414,1735083033209,-198.63948063,0.00013697,2]
[346555416,1735083033219,-513.85104729,0.00013697,2]
[346555418,1735083033228,-350.0,0.00013697,2]
[346555419,1735083033237,-250.0,0.00013697,2]
[346555420,1735083033246,-151.0,0.00013698,2]
[346555422,1735083033255,-151.0,0.00013698,2]
[346555423,1735083033265,-151.0,0.00013698,2]
[346555424,1735083033274,-151.0,0.00013698,2]
[346555425,1735083033284,-151.0,0.00013698,2]
[346555426,1735083033293,-151.0,0.00013698,2]
[346555427,1735083033303,-497.60775913,0.00013698,2]
[346555428,1735083033312,-151.0,0.00013698,2]
[346555429,1735083033321,-151.0,0.00013698,2]
[346555430,1735083033330,-500.0,0.00013698,2]
[346555431,1735083033340,-500.0,0.00013698,2]
[346555432,1735083033349,-500.0,0.00013698,2]
[346555433,1735083033359,-518.74,0.00013698,2]
[346555434,1735083033368,-500.0,0.00013698,2]
[346555435,1735083033377,-500.0,0.00013698,2]
[346555436,1735083033387,-500.0,0.00013698,2]
[346555437,1735083033396,-578.53219428,0.00013698,2]
[346555438,1735083033406,-500.0,0.00013698,2]
[346555439,1735083033415,-500.0,0.00013698,2]
[346555440,1735083033425,-151.0,0.00013698,2]
[346555441,1735083033434,-500.0,0.00013698,2]
[346555442,1735083033443,-151.0,0.00013698,2]
[346555443,1735083033453,-151.0,0.00013698,2]
[346555444,1735083033462,-151.0,0.00013698,2]
[346555445,1735083033471,-500.0,0.00013698,2]
[346555446,1735083033480,-500.0,0.00013698,2]
[346555447,1735083033490,-642.91,0.00013698,2]
[346555448,1735083033499,-501.97541592,0.00013698,2]
[346555449,1735083033508,-500.0,0.00013698,2]
[346555450,1735083033517,-500.0,0.00013698,2]
[346555451,1735083033527,-500.0,0.00013698,2]
[346555452,1735083033536,-500.0,0.00013698,2]
[346555453,1735083033545,-500.0,0.00013698,2]
[346555454,1735083033555,-500.0,0.00013698,2]
[346555455,1735083033565,-500.0,0.00013698,2]
[346555456,1735083033575,-795.01,0.00013698,2]
[346555457,1735083033586,-500.0,0.00013698,2]
[346555458,1735083033596,-500.0,0.00013698,2]
[346555459,1735083033605,-635.75,0.00013698,2]
[346555460,1735083033615,-500.0,0.00013698,2]
[346555461,1735083033625,-500.0,0.00013698,2]
[346555462,1735083033634,-525.14523659,0.00013698,2]
[346555463,1735083033643,-274.8567891,0.00013698,2]
[346555464,1735083033653,-500.0,0.00013698,2]
[346555465,1735083033664,-502.72862085,0.00013698,2]
[346555466,1735083033674,-500.0,0.00013698,2]
[346555467,1735083033684,-501.73221494,0.00013698,2]
[346555468,1735083033693,-500.0,0.00013698,2]
[346555469,1735083033703,-498.24684664,0.00013698,2]
[346555470,1735083033713,-500.0,0.00013698,2]
[346555471,1735083033722,-500.0,0.00013698,2]
[346555472,1735083033732,-500.0,0.00013698,2]
[346555473,1735083033741,-500.0,0.00013698,2]
[346555474,1735083033751,-500.0,0.00013698,2]
[346555475,1735083033761,-1109.62,0.00013698,2]
[346555476,1735083033770,-500.77906794,0.00013698,2]
[346555477,1735083033780,-503.53139964,0.00013698,2]
[346555478,1735083033789,-611.87,0.00013698,2]
[346555479,1735083033798,-500.0,0.00013698,2]
[346555480,1735083033808,-500.0,0.00013698,2]
[346555481,1735083033939,-500.0,0.00013698,2]
[346555482,1735083033982,-835.59,0.00013698,2]
[346555483,1735083033992,-500.0,0.00013698,2]
[346555484,1735083034002,-500.0,0.00013698,2]
[346555485,1735083034012,-500.0,0.00013698,2]
[346555486,1735083034021,-272.51314544,0.00013698,2]
[346555487,1735083034037,-227.48685456,0.00013698,2]
[346555488,1735083034047,-500.0,0.00013698,2]
[346555489,1735083034056,-500.0,0.00013698,2]
[346555490,1735083034066,-500.0,0.00013698,2]
[346555491,1735083034075,-1647.88,0.00013698,2]
[346555492,1735083034085,-500.0,0.00013698,2]
[346555493,1735083034094,-674.94,0.00013698,2]
[346555494,1735083034103,-505.94310983,0.00013698,2]
[346555495,1735083034113,-60.80076146,0.00013698,2]
[346555515,1735083038181,-439.19923854,0.00013698,2]
[346555517,1735083038190,-500.0,0.00013698,2]
[346555519,1735083038200,-846.01,0.00013698,2]
[346555521,1735083038209,-279.70416929,0.00013698,2]
[346555523,1735083038219,-500.0,0.00013698,2]
[346555524,1735083038228,-500.0,0.00013698,2]
[346555526,1735083038236,-1029.9,0.00013698,2]
[346555528,1735083038246,-151.0,0.00013698,2]
[346555529,1735083038255,-151.0,0.00013698,2]
[346555530,1735083038264,-151.0,0.00013698,2]
[346555531,1735083038273,-500.0,0.00013698,2]
[346555532,1735083038282,-500.0,0.00013698,2]
[346555533,1735083038293,-500.0,0.00013698,2]
[346555534,1735083038302,-219.953452,0.00013698,2]
[346555535,1735083038311,-500.0,0.00013698,2]
[346555536,1735083038320,-500.0,0.00013698,2]
[346555537,1735083038329,-500.0,0.00013698,2]
[346555538,1735083038338,-500.0,0.00013698,2]
[346555539,1735083038347,-99.71024971,0.00013698,2]
[346555540,1735083038364,-400.28975029,0.00013698,2]
[346555541,1735083038373,-126.03082159,0.00013698,2]
[346555542,1735083038384,-373.96917841,0.00013698,2]
[346555543,1735083038394,-500.0,0.00013698,2]
[346555544,1735083038403,-500.0,0.00013698,2]
[346555545,1735083038412,-500.0,0.00013698,2]
[346555546,1735083038421,-500.0,0.00013698,2]
[346555547,1735083038429,-500.0,0.00013698,2]
[346555548,1735083038438,-1006.31579771,0.00013698,2]
[346555554,1735083040458,-159.72420229,0.00013698,2]
[346555555,1735083040467,-500.0,0.00013698,2]
[346555556,1735083040476,-503.0149452,0.00013698,2]
[346555557,1735083040486,-500.0,0.00013698,2]
[346555558,1735083040495,-502.78979672,0.00013698,2]
[346555559,1735083040504,-1081.59,0.00013698,2]
[346555560,1735083040513,-216.31983927,0.00013698,2]
[346555561,1735083040522,-500.0,0.00013698,2]
[346555562,1735083040531,-151.0,0.00013698,2]
[346555563,1735083040541,-151.0,0.00013698,2]
[346555564,1735083040550,-151.0,0.00013698,2]
[346555565,1735083040560,-500.0,0.00013698,2]
[346555566,1735083040569,-151.0,0.00013698,2]
[346555567,1735083040578,-151.0,0.00013698,2]
[346555568,1735083040587,-151.0,0.00013698,2]
[346555569,1735083040596,-500.0,0.00013698,2]
[346555570,1735083040606,-635.04,0.00013698,2]
[346555571,1735083040615,-500.0,0.00013698,2]
[346555572,1735083040624,-151.0,0.00013698,2]
[346555573,1735083040633,-151.0,0.00013698,2]
[346555574,1735083040642,-155.227772,0.00013698,2]
[346555575,1735083040652,-500.0,0.00013698,2]
[346555576,1735083040661,-500.0,0.00013698,2]
[346555577,1735083040670,-600.87,0.00013698,2]
[346555578,1735083040679,-500.0,0.00013698,2]
[346555579,1735083040688,-530.46,0.00013698,2]
[346555580,1735083040698,-2322.63,0.00013698,2]
[346555581,1735083040707,-500.0,0.00013698,2]
[346555582,1735083040716,-500.0,0.00013698,2]
[346555583,1735083040725,-819.01,0.00013698,2]
[346555584,1735083040734,-500.0,0.00013698,2]
[346555585,1735083040743,-500.0,0.00013698,2]
[346555586,1735083040752,-500.0,0.00013698,2]
[346555587,1735083040762,-1233.43,0.00013698,2]
[346555588,1735083040771,-280.77760564,0.00013698,2]
[346555589,1735083040781,-500.0,0.00013698,2]
[346555590,1735083040790,-508.64858031,0.00013698,2]
[346555591,1735083040799,-500.0,0.00013698,2]
[346555592,1735083040808,-500.0,0.00013698,2]
[346555593,1735083040818,-500.0,0.00013698,2]
[346555594,1735083040827,-500.0,0.00013698,2]
[346555595,1735083040836,-500.0,0.00013698,2]
[346555596,1735083040845,-504.4277026,0.00013698,2]
[346555597,1735083040855,-500.0,0.00013698,2]
[346555598,1735083040864,-553.67,0.00013698,2]
[346555599,1735083040873,-594.86,0.00013698,2]
[346555600,1735083040883,-500.0,0.00013698,2]
[346555601,1735083040892,-502.27882223,0.00013698,2]
[346555602,1735083040901,-631.07,0.00013698,2]
[346555603,1735083040910,-537.92,0.00013698,2]
[346555604,1735083040920,-500.0,0.00013698,2]
[346555605,1735083040929,-2218.99,0.00013698,2]
[346555606,1735083040939,-500.0,0.00013698,2]
[346555607,1735083040948,-500.0,0.00013698,2]
[346555608,1735083040957,-503.40745806,0.00013698,2]
[346555609,1735083040966,-1244.8,0.00013698,2]
[346555610,1735083040975,-500.0,0.00013698,2]
[346555611,1735083040984,-500.0,0.00013698,2]
[346555612,1735083040994,-500.0,0.00013698,2]
[346555613,1735083041003,-270.35173352,0.00013698,2]
[346555614,1735083041012,-500.0,0.00013698,2]
[346555615,1735083041021,-560.81,0.00013698,2]
[346555616,1735083041031,-800.44,0.00013698,2]
[346555617,1735083041041,-500.0,0.00013698,2]
[346555618,1735083041050,-766.74,0.00013698,2]
[346555619,1735083041059,-500.0,0.00013698,2]
[346555620,1735083041068,-502.1690677,0.00013698,2]
[346555621,1735083041077,-500.0,0.00013698,2]
[346555622,1735083041086,-500.0,0.00013698,2]
[346555623,1735083041095,-500.0,0.00013698,2]
[346555624,1735083041104,-500.0,0.00013698,2]
[346555625,1735083041113,-500.0,0.00013698,2]
[346555626,1735083041123,-500.0,0.00013698,2]
[346555627,1735083041135,-550.96,0.00013698,2]
[346555628,1735083041144,-151.0,0.00013698,2]
[346555629,1735083041153,-151.0,0.00013698,2]
[346555630,1735083041163,-500.0,0.00013698,2]
[346555631,1735083041312,-500.0,0.00013698,2]
[346555632,1735083041322,-509.96462413,0.00013698,2]
[346555633,1735083041333,-500.0,0.00013698,2]
[346555634,1735083041343,-500.0,0.00013698,2]
[346555635,1735083041353,-500.0,0.00013698,2]
[346555636,1735083041363,-151.0,0.00013698,2]
[346555637,1735083041374,-151.0,0.00013698,2]
[346555638,1735083041383,-151.0,0.00013698,2]
[346555639,1735083041393,-151.0,0.00013698,2]
[346555640,1735083041402,-151.0,0.00013698,2]
[346555641,1735083041411,-161.173248,0.00013698,2]
[346555642,1735083041420,-500.0,0.00013698,2]
[346555643,1735083041429,-500.0,0.00013698,2]
[346555644,1735083041438,-586.65009066,0.00013698,2]
[346555645,1735083041447,-500.0,0.00013698,2]
[346555646,1735083041456,-151.0,0.00013698,2]
[346555647,1735083041465,-151.0,0.00013698,2]
[346555648,1735083041475,-277.10752,0.00013698,2]
[346555649,1735083041484,-8223.79147242,0.00013698,2]
[346555650,1735083041493,-500.0,0.00013698,2]
[346555651,1735083041502,-594.59031257,0.00013698,2]
[346555652,1735083041511,-151.0,0.00013698,2]
[346555653,1735083041521,-197.502782,0.00013698,2]
[346555654,1735083041530,-1887.02,0.00013698,2]
[346555655,1735083041539,-1475.98,0.00013698,2]
[346555656,1735083041548,-500.0,0.00013698,2]
[346555657,1735083041557,-151.0,0.00013698,2]
[346555658,1735083041566,-151.0,0.00013698,2]
[346555659,1735083041577,-502.55197986,0.00013698,2]
[346555660,1735083041586,-500.0,0.00013698,2]
[346555661,1735083041595,-500.0,0.00013698,2]
[346555662,1735083041604,-625.12521008,0.00013698,2]
[346555663,1735083041613,-500.0,0.00013698,2]
[346555664,1735083041622,-500.0,0.00013698,2]
[346555665,1735083041632,-500.0,0.00013698,2]